bitfinex-derivatives/quotes_SOLF0:USTF0_20250518
["timestamp","ask_amount","ask_price","bid_price","bid_amount"]
[1747592100678,5.14929506,170.48,170.39,125.44]
[1747592100968,5.14929506,170.48,170.4,3.8932]
[1747592101476,5.14929506,170.48,170.41,2.0254]
[1747592102483,29.62854441,170.54,170.4,1.8729]
[1747592102779,25.60044441,170.5,170.4,5.8664]
[1747592103074,124.54,170.49,170.37,5.41340166]
[1747592103279,124.54,170.49,170.44,5.8651]
[1747592103876,124.54,170.49,170.37,5.41340166]
[1747592105674,124.54,170.49,170.35,1.8729]
[1747592105875,150.14044441,170.49,170.35,127.2929]
[1747592106286,125.42,170.48,170.35,127.2929]
[1747592109483,1.1703,170.43,170.3,512.59340166]
[1747592109685,126.66050914,170.42,170.3,512.59340166]
[1747592109879,5.8678,170.37,170.32,5.8692]
[1747592110183,151.02044441,170.41,170.3,5.41340166]
[1747592110386,2.68012072,170.4,170.31,5.8694]
[1747592110584,2.68012072,170.39,170.3,5.41340166]
[1747592110879,5.8683,170.35,170.31,5.8696]
[1747592111080,151.02044441,170.41,170.3,5.41340166]
[1747592111278,2.68164162,170.4,170.3,5.41340166]
[1747592111479,5.8685,170.35,170.3,5.8697]
[1747592111688,151.02044441,170.41,170.28,125.42]
[1747592111881,151.02044441,170.41,170.24,123.92]
[1747592111882,25.60044441,170.37,170.23,127.2758]
[1747592112182,4.70392848,170.36,170.23,1.8558]
[1747592112386,126.44202848,170.35,170.23,1.8558]
[1747592112582,126.44202848,170.35,170.21,5.41340166]
[1747592112583,25.60044441,170.33,170.21,5.41340166]
[1747592112778,4.58022848,170.32,170.21,5.41340166]
[1747592112980,5.8712,170.27,170.22,5.8724]
[1747592113180,3.0692,170.32,170.21,5.41340166]
[1747592113478,123.7,170.28,170.21,5.41340166]
[1747592113684,129.96911166,170.27,170.21,5.41340166]
[1747592113885,127.2912,170.27,170.21,5.41340166]
[1747592114088,5.8723,170.24,170.21,5.41340166]
[1747592114484,152.89164441,170.27,170.21,5.41340166]
[1747592114691,152.89164441,170.27,170.19,7.21783596]
[1747592114886,152.89164441,170.27,170.17,5.8741]
[1747592115087,2.67573308,170.26,170.14,125.44]
[1747592115288,152.89164441,170.27,170.14,125.44]
[1747592115581,5.8731,170.21,170.16,5.8747]
[1747592115786,5.8731,170.21,170.11,1.9552]
[1747592116090,5.8731,170.21,170.16,5.8746]
[1747592116384,5.8731,170.21,170.11,1.9552]
[1747592116587,5.8728,170.22,170.11,1.9552]
[1747592116790,127.2912,170.27,170.11,1.9552]
[1747592117791,125.44,170.27,170.11,1.9552]
[1747592117992,123.38,170.29,170.14,25.60044441]
[1747592118188,125.48,170.34,170.15,248.84]
[1747592118388,125.48,170.34,170.18,25.60044441]
[1747592118588,125.48,170.34,170.19,2.0055]
[1747592119203,11.01829506,170.33,170.19,2.0055]
[1747592119493,5.14929506,170.33,170.19,127.5055]
[1747592119688,5.14929506,170.33,170.19,2.0055]
[1747592119894,0.8917,170.32,170.19,2.0055]
[1747592121094,26.49214441,170.32,170.19,2.0055]
[1747592122891,26.49214441,170.32,170.23,5.8721]
[1747592123397,5.8706,170.28,170.23,5.8721]
[1747592123691,26.49214441,170.32,170.23,5.8721]
[1747592123895,26.49214441,170.32,170.22,5.8726]
[1747592124197,26.49214441,170.32,170.19,2.0055]
[1747592124597,5.8704,170.29,170.19,2.0055]
[1747592124792,26.49214441,170.32,170.21,5.8729]
[1747592124992,122.86,170.29,170.19,2.0055]
[1747592125495,122.86,170.29,170.22,5.8727]
[1747592125695,5.871,170.27,170.22,5.8727]
[1747592125887,122.86,170.29,170.19,2.0055]
[1747592126194,122.86,170.29,170.16,509.1942]
[1747592126398,25.60044441,170.28,170.14,1.9966]
[1747592126598,123.1,170.27,170.14,1.9966]
[1747592126902,123.1,170.27,170.16,5.8745]
[1747592127095,25.60044441,170.23,170.09,1.9865]
[1747592127294,124.7445,170.22,170.09,1.9865]
[1747592127794,124.7445,170.22,170.1,1.964]
[1747592128600,124.7445,170.22,170.13,5.8758]
[1747592128800,124.7445,170.22,170.1,1.964]
[1747592129103,5.8747,170.17,170.1,1.964]
[1747592129603,5.8748,170.16,170.12,5.8758]
[1747592129802,150.34494441,170.22,170.1,1.964]
[1747592130493,122.68,170.22,170.1,1.964]
[1747592130697,148.70044441,170.27,170.11,122.42]
[1747592130698,5.8717,170.25,170.11,122.42]
[1747592130899,0.8911,170.27,170.11,122.42]
[1747592131098,122.42,170.29,170.11,122.42]
[1747592131300,5.8716,170.26,170.2,5.8731]
[1747592131497,122.42,170.29,170.15,123.14]
[1747592131704,122.42,170.29,170.16,1.8978]
[1747592132203,5.871,170.27,170.22,5.8726]
[1747592132405,122.42,170.29,170.17,1.9906]
[1747592132807,5.871,170.27,170.22,5.8725]
[1747592133005,123.14,170.3,170.17,1.9906]
[1747592133206,123.14,170.3,170.18,122.24]
[1747592133404,150.14,170.36,170.18,629.76]
[1747592133704,150.14,170.36,170.19,1.8706]
[1747592133705,123.14,170.36,170.19,1.8706]
[1747592134004,129.008,170.36,170.3,5.8697]
[1747592134214,123.14,170.36,170.25,122.16]
[1747592134406,147.76044441,170.41,170.26,3.8511]
[1747592134703,122.16,170.41,170.26,3.8511]
[1747592134902,124.0311,170.42,170.26,3.8511]
[1747592135101,5.14929506,170.43,170.28,25.60044441]
[1747592135306,5.14929506,170.43,170.29,507.5]
[1747592135699,5.14929506,170.43,170.3,2.0392]
[1747592135900,5.14929506,170.43,170.31,123.14]
[1747592136104,5.14929506,170.43,170.32,122.0]
[1747592136410,245.22,170.48,170.32,147.60044441]
[1747592137217,245.22,170.48,170.32,123.08]
[1747592137510,25.60044441,170.45,170.32,123.08]
[1747592137712,270.82044441,170.48,170.32,123.08]
[1747592138208,270.82044441,170.48,170.32,244.9]
[1747592138410,270.82044441,170.48,170.32,123.08]
[1747592138709,5.8654,170.44,170.37,5.8675]
[1747592139005,270.82044441,170.48,170.37,5.8675]
[1747592139206,5.8653,170.44,170.38,5.8672]
[1747592139404,5.8653,170.44,170.32,123.08]
[1747592139599,245.22,170.48,170.32,123.08]
[1747592139811,5.8658,170.42,170.35,5.8679]
[1747592140016,245.22,170.48,170.32,123.08]
[1747592140315,245.22,170.48,170.35,5.8682]
[1747592140610,245.22,170.48,170.32,123.08]
[1747592141110,25.60044441,170.45,170.3,2.0392]
[1747592141303,25.60044441,170.45,170.31,123.06]
[1747592141911,5.8668,170.4,170.33,5.8686]
[1747592142110,25.60044441,170.45,170.33,5.8686]
[1747592142909,25.60044441,170.45,170.31,123.06]
[1747592144998,5.8665,170.4,170.34,5.8685]
[1747592145407,25.60044441,170.45,170.31,123.06]
[1747592145607,5.8662,170.41,170.36,5.8677]
[1747592145906,5.8662,170.41,170.31,123.06]
[1747592146108,5.8659,170.42,170.31,123.06]
[1747592146307,25.60044441,170.45,170.31,123.06]
[1747592146711,5.8662,170.41,170.35,5.8681]
[1747592147611,121.14,170.46,170.31,123.06]
[1747592147808,123.14,170.48,170.31,123.06]
[1747592148010,5.8649,170.45,170.31,123.06]
[1747592148510,123.14,170.48,170.3,2.0392]
[1747592148708,123.14,170.48,170.31,243.96]
[1747592149111,5.8654,170.44,170.31,243.96]
[1747592150212,123.14,170.48,170.31,243.96]
[1747592150708,123.14,170.48,170.41,5.866]
[1747592151907,508.3907,170.51,170.31,243.96]
[1747592152101,507.5,170.51,170.33,25.60044441]
[1747592152305,507.5,170.51,170.34,1.976]
[1747592152506,5.8648,170.45,170.39,5.8666]
[1747592152709,120.58,170.46,170.35,120.64]
[1747592153208,25.60044441,170.44,170.3,2.0392]
[1747592153611,0.8898,170.43,170.3,2.0392]
[1747592153809,25.60044441,170.4,170.2,507.0]
[1747592154006,25.60044441,170.36,170.26,10.25300998]
[1747592154214,25.60044441,170.36,170.26,16.12420998]
[1747592154511,25.60044441,170.36,170.26,10.25300998]
[1747592154717,0.8898,170.35,170.26,1.17467402]
[1747592154921,25.60044441,170.32,170.26,1.17467402]
[1747592155216,5.871,170.27,170.26,0.28337402]
[1747592155520,5.871,170.27,170.14,9.16273596]
[1747592155521,5.8731,170.21,170.14,9.16273596]
[1747592155714,25.60044441,170.28,170.18,5.8739]
[1747592156017,25.60044441,170.28,170.19,1.17515717]
[1747592156517,25.60044441,170.24,170.19,0.28165717]
[1747592156722,5.8734,170.2,170.19,0.28165717]
[1747592157213,126.1726,170.23,170.19,0.28165717]
[1747592157416,120.3,170.23,170.19,0.28165717]
[1747592158318,5.8734,170.2,170.19,0.28165717]
[1747592158514,120.3,170.23,170.19,0.28165717]
[1747592158915,5.8734,170.2,170.19,0.28165717]
[1747592160520,120.06,170.24,170.19,0.28165717]
[1747592161021,25.60044441,170.22,170.05,1.9751]
[1747592161221,25.60044441,170.18,170.06,1.1760555]
[1747592161423,120.0,170.17,170.09,5.8769]
[1747592161619,120.0,170.17,170.06,1.1760555]
[1747592161815,25.60044441,170.14,170.06,1.1760555]
[1747592162324,120.0,170.17,170.06,1.1760555]
[1747592162519,25.60044441,170.19,170.06,1.1760555]
[1747592162822,627.26,170.21,170.06,1.1760555]
[1747592163120,5.8737,170.19,170.07,1.9548]
[1747592163322,627.26,170.21,170.07,1.9548]
[1747592163822,5.8737,170.2,170.07,1.9548]
[1747592164023,627.26,170.21,170.07,1.9548]
[1747592164231,119.9,170.21,170.07,1.9548]
[1747592164423,120.72,170.22,170.07,1.9548]
[1747592165219,25.60044441,170.28,170.07,1.9548]
[1747592165424,120.74,170.25,170.07,1.9548]
[1747592165723,120.74,170.25,170.15,5.875]
[1747592165923,120.74,170.25,170.07,1.9548]
[1747592166124,26.77525644,170.24,170.07,1.9548]
[1747592166513,119.64,170.23,170.07,1.9548]
[1747592166726,1.17481203,170.24,170.09,25.60044441]
[1747592166925,1.17481203,170.24,170.1,121.5106]
[1747592167424,1.17481203,170.24,170.17,5.8744]
[1747592167627,5.8726,170.23,170.17,5.8744]
[1747592167926,1.17481203,170.24,170.14,120.76]
[1747592168322,1.17481203,170.24,170.15,1.9752]
[1747592168626,1.17481203,170.24,170.21,5.8727]
[1747592168924,1.17481203,170.24,170.15,1.9752]
[1747592169126,1.17481203,170.24,170.23,5.8723]
[1747592169421,119.46,170.32,170.18,1.9876]
[1747592169628,1.17432916,170.31,170.18,1.9876]
[1747592171032,1.17432916,170.31,170.2,25.60044441]
[1747592171223,1.17432916,170.31,170.21,120.76]
[1747592171924,119.3,170.35,170.21,120.76]
[1747592172129,25.60044441,170.34,170.21,120.76]
[1747592172433,25.60044441,170.34,170.23,5.8723]
[1747592172732,120.74,170.33,170.21,120.76]
[1747592173134,1.1763,170.32,170.18,1.9876]
[1747592173525,5.8702,170.3,170.18,1.9876]
[1747592173726,25.60044441,170.3,170.03,22.28823727]
[1747592173933,25.60044441,170.26,170.07,1.8804]
[1747592174133,239.8,170.25,170.07,1.8804]
[1747592174434,25.60044441,170.22,170.07,1.8804]
[1747592174737,25.60044441,170.26,170.08,1.9105]
[1747592175029,119.0,170.25,170.08,1.9105]
[1747592175327,119.0,170.25,170.09,118.96]
[1747592175728,124.8717,170.25,170.09,118.96]
[1747592176033,5.8717,170.25,170.09,118.96]
[1747592176239,239.64,170.26,170.09,118.96]
[1747592176435,25.60044441,170.18,170.05,7.21783596]
[1747592176727,25.60044441,170.14,170.05,7.21783596]
[1747592177328,25.60044441,170.1,170.05,7.21783596]
[1747592177534,118.84,170.09,169.99,5.8009]
[1747592177933,118.84,170.09,169.95,120.74]
[1747592178234,118.84,170.09,169.96,3.863]
[1747592178828,118.84,170.09,169.97,1.17667823]
[1747592180231,118.84,170.09,170.01,5.8797]
[1747592180434,118.84,170.09,170.01,7.05610138]
[1747592180739,124.7175,170.09,170.01,1.17640138]
[1747592180935,118.84,170.09,170.01,1.17640138]
[1747592182539,118.84,170.09,170.04,5.8789]
[1747592183036,118.84,170.09,170.01,1.17640138]
[1747592185839,118.84,170.09,170.04,5.8786]
[1747592186145,118.84,170.09,170.01,1.17640138]
[1747592186344,118.84,170.09,170.05,5.8783]
[1747592187249,118.84,170.09,170.04,5.8788]
[1747592187452,124.7175,170.09,169.96,3.863]
[1747592187752,118.84,170.09,169.96,3.863]
[1747592188154,124.7172,170.09,169.96,3.863]
[1747592188651,5.8784,170.06,169.96,3.863]
[1747592188852,118.84,170.09,169.96,3.863]
[1747592189154,5.8781,170.07,169.96,3.863]
[1747592189455,118.84,170.09,169.96,3.863]
[1747592189756,26.77694441,170.08,169.83,657.42514183]
[1747592189943,25.60044441,170.04,169.84,5.8672]
[1747592190145,25.60044441,169.96,169.83,5.40469742]
[1747592190448,534.82,170.07,169.73,507.82]
[1747592190449,25.60044441,169.94,169.77,5.40469742]
[1747592190651,25.60044441,169.89,169.79,5.8873]
[1747592190853,25.60044441,169.89,169.77,5.40469742]
[1747592191354,25.60044441,169.85,169.77,5.40469742]
[1747592191548,236.7,169.84,169.77,5.40469742]
[1747592192554,5.8869,169.81,169.77,5.40469742]
[1747592192854,236.7,169.84,169.77,5.40469742]
[1747592193054,5.887,169.81,169.75,7.21783596]
[1747592193272,25.75085272,169.76,169.63,10.73289765]
[1747592193454,25.75085272,169.65,169.55,25.68209805]
[1747592193755,25.75085272,169.56,169.45,45.51364746]
[1747592193957,236.72,169.55,169.45,45.51364746]
[1747592194249,25.75085272,169.46,169.42,10.06475758]
[1747592194551,118.68,169.45,169.43,1.18042849]
[1747592194755,25.75085272,169.48,169.43,1.18042849]
[1747592194955,25.75085272,169.44,169.43,1.18042849]
[1747592195155,144.43085272,169.44,169.43,1.18042849]
[1747592195359,118.68,169.44,169.43,1.18042849]
[1747592195555,144.43085272,169.44,169.43,1.18042849]
[1747592195755,118.68,169.44,169.43,1.18042849]
[1747592196359,118.68,169.44,169.32,85.33515244]
[1747592196552,25.75085272,169.47,169.32,85.33515244]
[1747592196758,118.8,169.49,169.32,85.33515244]
[1747592197059,144.55085272,169.49,169.32,85.33515244]
[1747592197252,25.75085272,169.47,169.32,85.33515244]
[1747592197560,118.8,169.49,169.31,119.68]
[1747592197952,118.8,169.51,169.31,119.68]
[1747592198157,118.8,169.5,169.31,119.68]
[1747592198746,239.7,169.54,169.31,145.43085272]
[1747592199147,239.7,169.54,169.35,25.75085272]
[1747592199355,534.43085272,169.58,169.35,25.75085272]
[1747592199554,118.8,169.57,169.35,25.75085272]
[1747592199755,25.75085272,169.53,169.36,121.42]
[1747592200058,25.82439281,169.52,169.37,240.22]
[1747592200261,25.82439281,169.52,169.46,5.899]
[1747592200557,25.82439281,169.52,169.37,118.86]
[1747592200759,25.84590007,169.45,169.38,1.9074]
[1747592201259,118.86,169.47,169.38,1.9074]
[1747592201855,118.86,169.47,169.41,5.9004]
[1747592202152,25.84590007,169.45,169.38,1.9074]
[1747592202353,144.70590007,169.47,169.38,1.9074]
[1747592202558,25.84590007,169.43,169.38,1.9074]
[1747592202762,144.70590007,169.47,169.38,1.9074]
[1747592203060,118.86,169.47,169.38,1.9074]
[1747592203860,51.71998906,169.39,169.0,13.8297]
[1747592204153,51.71998906,169.23,169.14,2.461e-05]
[1747592204358,25.85999453,169.16,169.01,5.7906]
[1747592204559,121.96,169.18,169.09,5.9119]
[1747592204753,121.96,169.18,169.01,5.7906]
[1747592204953,121.96,169.18,169.02,240.94]
[1747592205653,147.81999453,169.18,169.02,240.94]
[1747592205859,25.85999453,169.19,169.02,240.94]
[1747592206060,122.16,169.18,169.02,118.92]
[1747592206464,509.24,169.22,169.02,118.92]
[1747592206663,122.24,169.27,169.03,25.85999453]
[1747592206958,122.24,169.27,169.07,25.85999453]
[1747592207152,25.85999453,169.32,169.08,122.58]
[1747592207356,122.68,169.33,169.09,122.34]
[1747592207554,25.85999453,169.31,169.09,122.34]
[1747592208662,25.88975626,169.31,169.23,5.9069]
[1747592208861,25.89170922,169.31,169.12,509.88]
[1747592209062,25.90386819,169.27,169.13,124.2527]
[1747592209265,123.2,169.26,169.13,124.2527]
[1747592209765,123.2,169.26,169.14,4.0558]
[1747592210162,28.16826813,169.35,169.14,4.0558]
[1747592210466,273.85007046,169.34,169.14,4.0558]
[1747592211263,28.17007046,169.31,169.14,4.0558]
[1747592212267,28.17007046,169.31,169.14,126.4758]
[1747592212461,245.68,169.34,169.14,126.4758]
[1747592212861,245.68,169.34,169.27,5.9056]
[1747592213164,245.68,169.34,169.14,126.4758]
[1747592213470,245.68,169.34,169.22,5.9071]
[1747592213968,5.9046,169.3,169.23,5.907]
[1747592214269,28.17007046,169.33,169.23,5.907]
[1747592214468,5.9053,169.29,169.14,126.4758]
[1747592214668,263.33,169.34,169.14,126.4758]
[1747592214868,28.17007046,169.33,169.14,126.4758]
[1747592215071,5.9042,169.32,169.14,126.4758]
[1747592215265,28.17007046,169.33,169.14,126.4758]
[1747592215674,245.68,169.34,169.14,126.4758]
[1747592216070,245.68,169.34,169.26,5.9056]
[1747592216375,245.68,169.34,169.14,126.4758]
[1747592216870,28.19004954,169.28,169.03,122.46]
[1747592217068,755.48,169.27,169.06,3.9875]
[1747592217576,5.9067,169.24,169.06,3.9875]
[1747592217768,755.48,169.27,169.06,3.9875]
[1747592218175,755.48,169.27,169.19,5.9083]
[1747592218475,755.48,169.27,169.11,122.46]
[1747592218674,122.82,169.26,169.1,510.22]
[1747592218973,122.82,169.26,169.11,122.46]
[1747592219167,128.726,169.26,169.18,5.9085]
[1747592219367,122.82,169.26,169.11,122.46]
[1747592219767,128.726,169.26,169.11,122.46]
[1747592219967,122.82,169.26,169.11,122.46]
[1747592220169,510.16,169.27,169.11,122.46]
[1747592220375,122.24,169.32,169.11,122.46]
[1747592221672,122.24,169.32,169.17,5.9091]
[1747592222070,122.24,169.32,169.11,122.48]
[1747592222975,28.19004954,169.27,169.06,126.4675]
[1747592223276,122.48,169.26,169.06,3.9875]
[1747592223466,631.84,169.25,169.04,1.9856]
[1747592223671,631.84,169.25,169.0,123.52]
[1747592223672,28.19004954,169.21,169.0,2.0]
[1747592224071,28.19004954,169.21,169.03,5.914]
[1747592224374,45.84004954,169.21,169.0,2.0]
[1747592224677,17.65,169.21,169.0,2.0]
[1747592224977,28.19004954,169.15,169.0,2.0]
[1747592225177,754.4,169.14,169.0,2.0]
[1747592225477,510.38,169.14,169.0,2.0]
[1747592225771,244.1,169.13,169.0,2.0]
[1747592225975,245.94,169.12,169.0,2.0]
[1747592226771,263.59,169.12,169.0,2.0]
[1747592226969,5.912,169.09,169.02,5.9144]
[1747592227278,245.94,169.12,169.0,2.0]
[1747592227475,246.34,169.11,169.0,2.0]
[1747592227872,510.38,169.14,169.0,2.0]
[1747592228379,246.24,169.13,169.0,2.0]
[1747592229781,25.96267353,169.1,169.0,2.0]
[1747592230477,25.96267353,169.09,169.0,2.0]
[1747592231479,25.96267353,169.05,169.0,2.0]
[1747592231671,5.9147,169.01,169.0,2.0]
[1747592232175,5.914,169.03,169.0,2.0]
[1747592232381,1.18329191,169.02,169.0,2.0]
[1747592232775,25.96267353,169.11,169.0,2.0]
[1747592233181,247.70273211,169.1,169.0,2.0]
[1747592233378,1.18273211,169.1,169.0,2.0]
[1747592233771,7.09433211,169.1,169.04,5.9135]
[1747592233979,1.18273211,169.1,169.0,2.0]
[1747592234275,25.96267353,169.09,169.0,2.0]
[1747592234777,1.18287201,169.08,169.0,2.0]
[1747592235876,1.18287201,169.08,169.01,1.8922]
[1747592236181,1.18287201,169.08,169.07,5.9126]
[1747592236584,1.18287201,169.08,169.01,5.8296]
[1747592236781,1.18287201,169.08,169.01,3.9374]
[1747592237083,1.18287201,169.08,169.0,2.0]
[1747592237280,1.18287201,169.08,169.03,5.9139]
[1747592237487,1.18287201,169.08,169.0,2.0]
[1747592237683,1.18287201,169.08,169.01,1.8922]
[1747592237888,1.18287201,169.08,169.07,5.9126]
[1747592238186,122.16,169.15,169.01,1.8922]
[1747592238482,1.1824524,169.14,169.01,1.8922]
[1747592240381,1.1824524,169.14,169.13,5.9105]
[1747592240580,1.1824524,169.14,169.04,123.08]
[1747592241389,1.1824524,169.14,169.13,5.9105]
[1747592241692,1.1824524,169.14,169.04,149.04267353]
[1747592241893,754.86,169.22,169.15,5.9096]
[1747592242189,1.18196324,169.21,169.04,149.04267353]
[1747592244191,25.96267353,169.2,169.04,123.08]
[1747592244379,1.18210296,169.19,169.04,123.08]
[1747592245079,1.18210296,169.19,169.15,5.9097]
[1747592245390,1.18210296,169.19,169.04,123.08]
[1747592245691,1.18210296,169.19,169.04,149.04267353]
[1747592246084,1.18210296,169.19,169.08,25.96267353]
[1747592246285,1.18210296,169.19,169.09,633.5994]
[1747592246490,1.18210296,169.19,169.18,5.9088]
[1747592246991,124.88929506,169.27,169.13,119.74]
[1747592247189,5.14929506,169.27,169.14,1.9516]
[1747592248495,2.07409506,169.27,169.17,25.96267353]
[1747592248691,7.977e-05,169.26,169.18,118.88]
[1747592248890,7.977e-05,169.26,169.19,510.66]
[1747592249095,7.977e-05,169.26,169.2,119.72]
[1747592249295,7.977e-05,169.26,169.25,5.9063]
[1747592249499,7.977e-05,169.26,169.2,121.738]
[1747592249898,7.977e-05,169.26,169.25,5.9063]
[1747592250497,5.08121743,169.29,169.2,121.738]
[1747592251996,266.51807353,169.37,169.2,121.738]
[1747592252203,2.64984601,169.36,169.2,121.738]
[1747592252403,266.51807353,169.37,169.2,121.738]
[1747592252598,2.64984253,169.36,169.2,121.738]
[1747592252806,266.51807353,169.37,169.2,121.738]
[1747592253202,5.9036,169.33,169.25,5.9063]
[1747592253392,266.51807353,169.37,169.2,2.018]
[1747592253592,25.96267353,169.33,169.2,2.018]
[1747592253808,5.9043,169.31,169.23,5.907]
[1747592253992,25.96267353,169.33,169.2,2.018]
[1747592254196,118.84,169.32,169.2,2.018]
[1747592255200,1.18091639,169.36,169.22,25.96267353]
[1747592255396,1.18091639,169.36,169.23,240.349]
[1747592255597,1.18091639,169.36,169.26,25.96267353]
[1747592255797,1.18091639,169.36,169.23,240.349]
[1747592256104,1.18091639,169.36,169.2,2.018]
[1747592256305,1.18091639,169.36,169.21,121.529]
[1747592256707,1.18091639,169.36,169.22,25.87686561]
[1747592257208,118.78,169.35,169.1,510.34]
[1747592257408,118.78,169.35,169.2,1.8571]
[1747592257605,118.78,169.35,169.2,121.5171]
[1747592258708,1.18091639,169.36,169.2,631.8571]
[1747592259107,1.18091639,169.36,169.23,25.88907054]
[1747592259308,1.18091639,169.36,169.24,1.9481]
[1747592259508,1.18091639,169.36,169.34,5.9032]
[1747592259708,1.18091639,169.36,169.29,119.64]
[1747592260302,1.18091639,169.36,169.28,1.9962]
[1747592261402,1.18091639,169.36,169.35,5.9028]
[1747592261805,1.18091639,169.36,169.3,118.74]
[1747592262005,1.18091639,169.36,169.31,1.9294]
[1747592262402,1.9221,169.42,169.31,1.9294]
[1747592262708,25.86623062,169.48,169.31,1.9294]
[1747592262915,126.5857,169.47,169.39,5.9012]
[1747592263112,120.6869,169.47,169.34,119.62]
[1747592264309,25.86623062,169.44,169.31,1.9294]
[1747592264512,25.86623062,169.44,169.32,5.9038]
[1747592264712,25.86623062,169.44,169.31,1.9294]
[1747592265009,5.9017,169.39,169.31,7.8336]
[1747592265318,25.86623062,169.44,169.31,1.9294]
[1747592265516,5.9,169.44,169.36,5.9023]
[1747592265717,120.6269,169.47,169.36,5.9023]
[1747592265920,120.6269,169.47,169.13,11.8208]
[1747592265921,17.65,169.46,169.13,11.8208]
[1747592266120,25.89200496,169.34,169.14,25.89200496]
[1747592266322,25.89309593,169.34,169.15,1.9196]
[1747592266623,2.0184,169.33,169.15,3.1019825]
[1747592266921,2.0184,169.33,169.16,25.89309593]
[1747592267117,2.0184,169.33,169.15,3.1019825]
[1747592267318,27.90018648,169.33,169.15,3.1019825]
[1747592267619,27.90018648,169.33,169.16,1.1823126]
[1747592267819,27.90018648,169.33,169.17,1.8974]
[1747592268125,25.88178648,169.29,169.17,1.8974]
[1747592268312,5.906,169.26,169.18,5.9087]
[1747592268716,25.92242811,169.25,169.16,1.1823126]
[1747592268916,25.9284653,169.23,169.16,1.1823126]
[1747592269616,2.014,169.24,169.16,1.1823126]
[1747592270412,118.62,169.27,169.16,1.1823126]
[1747592270617,2.014,169.3,169.22,5.9073]
[1747592270826,118.62,169.29,169.16,120.8023126]
[1747592271324,2.014,169.3,169.16,120.8023126]
[1747592271517,2.014,169.3,169.17,512.1454]
[1747592271717,118.6,169.34,169.18,1.9572]
[1747592271918,120.4974,169.34,169.18,3.8991]
[1747592273019,1.8974,169.34,169.18,3.8991]
[1747592273625,25.90732391,169.3,169.18,3.8991]
[1747592274025,144.48732391,169.3,169.18,3.8991]
[1747592274526,25.91713871,169.26,169.18,3.8991]
[1747592274726,1.8617,169.25,169.13,118.56]
[1747592274927,1.8617,169.25,169.17,5.9088]
[1747592275119,1.8617,169.25,169.13,118.56]
[1747592275120,27.78341005,169.25,169.13,118.56]
[1747592275625,27.78341005,169.25,169.15,5.9096]
[1747592275626,5.9069,169.24,169.15,5.9096]
[1747592275826,27.78341005,169.25,169.13,118.56]
[1747592277229,1.8617,169.25,169.13,118.56]
[1747592277925,1.8617,169.25,169.22,5.9071]
[1747592278125,25.92171005,169.29,169.14,1.9062]
[1747592278321,5.9051,169.29,169.14,1.9062]
[1747592278529,25.90438579,169.3,169.14,1.9062]
[1747592278824,27.08572069,169.3,169.14,1.9062]
[1747592279028,145.60572069,169.3,169.14,1.9062]
[1747592279732,1.1813349,169.3,169.14,1.9062]
[1747592281034,1.1813349,169.3,169.23,5.9067]
[1747592281333,1.1813349,169.3,169.14,1.9062]
[1747592281729,1.1813349,169.3,169.26,5.9057]
[1747592281921,1.1813349,169.3,169.2,118.58]
[1747592282231,1.1813349,169.3,169.29,5.9049]
[1747592282734,2.0467,169.37,169.27,237.04]
[1747592282934,1.18091639,169.36,169.27,237.04]
[1747592283330,1.18091639,169.36,169.35,5.9026]
[1747592283520,1.18091639,169.36,169.27,237.04]
[1747592283726,1.18091639,169.36,169.21,3.8785]